[Event "Late-Titled-Tuesday-Blitz-February-13-2024"]
[Site "Chess.com"]
[Date "2024.02.13"]
[Round "1"]
[White "DenLaz"]
[Black "Kaua18"]
[Result "1-0"]
[WhiteElo "3076"]
[BlackElo "2523"]
[TimeControl "180+1"]
[EndTime "14:06:18 PST"]
[Termination "DenLaz won on time"]

1. d4 {[%clk 0:03:00.9]} 1... d5 {[%clk 0:02:56.6]} 2. c4 {[%clk 0:03:01.4]}
2... e6 {[%clk 0:02:56.6]} 3. Nf3 {[%clk 0:03:02]} 3... Nf6 {[%clk 0:02:56.2]}
4. g3 {[%clk 0:03:02.5]} 4... Nbd7 {[%clk 0:02:54.9]} 5. Bg2 {[%clk 0:03:02.9]}
5... c6 {[%clk 0:02:53.4]} 6. b3 {[%clk 0:03:02.2]} 6... Be7 {[%clk 0:02:53.8]}
7. O-O {[%clk 0:03:01.2]} 7... O-O {[%clk 0:02:54.4]} 8. Qc2 {[%clk 0:03:01.9]}
8... b6 {[%clk 0:02:38.9]} 9. Rd1 {[%clk 0:03:01.5]} 9... Bb7 {[%clk 0:02:38.1]}
10. Nc3 {[%clk 0:03:01.5]} 10... Rc8 {[%clk 0:02:37.8]} 11. e4 {[%clk
0:03:01.1]} 11... a6 {[%clk 0:02:31.1]} 12. Bb2 {[%clk 0:02:51.1]} 12... Qc7
{[%clk 0:02:22.1]} 13. Rac1 {[%clk 0:02:50]} 13... Qb8 {[%clk 0:02:22.2]} 14. e5
{[%clk 0:02:44.8]} 14... Ne8 {[%clk 0:02:22.1]} 15. Qe2 {[%clk 0:02:45.3]} 15...
Nc7 {[%clk 0:02:19]} 16. cxd5 {[%clk 0:02:44.7]} 16... cxd5 {[%clk 0:02:18.4]}
17. h4 {[%clk 0:02:44.3]} 17... b5 {[%clk 0:02:17.3]} 18. h5 {[%clk 0:02:41.6]}
18... h6 {[%clk 0:02:17.3]} 19. Qe3 {[%clk 0:02:37.1]} 19... b4 {[%clk 0:02:04]}
20. Ne2 {[%clk 0:02:36]} 20... Nb5 {[%clk 0:02:03.7]} 21. g4 {[%clk 0:02:33.9]}
21... Rxc1 {[%clk 0:02:01]} 22. Bxc1 {[%clk 0:02:33.5]} 22... Qd8 {[%clk
0:01:56.1]} 23. Qd3 {[%clk 0:02:25.3]} 23... Qa5 {[%clk 0:01:44.3]} 24. g5
{[%clk 0:02:23]} 24... hxg5 {[%clk 0:01:38.8]} 25. Bxg5 {[%clk 0:02:21.8]} 25...
Qd8 {[%clk 0:01:27.5]} 26. Bd2 {[%clk 0:02:21.1]} 26... Re8 {[%clk 0:01:21.4]}
27. Bh3 {[%clk 0:02:20.1]} 27... Nf8 {[%clk 0:01:21.2]} 28. Kh2 {[%clk
0:02:18.8]} 28... Qc7 {[%clk 0:01:10.5]} 29. Rg1 {[%clk 0:02:17.9]} 29... f5
{[%clk 0:01:09]} 30. Nf4 {[%clk 0:02:12.5]} 30... Bd8 {[%clk 0:01:01.3]} 31. h6
{[%clk 0:02:07.1]} 31... Re7 {[%clk 0:01:01.4]} 32. Ng5 {[%clk 0:02:01.4]} 32...
Bc8 {[%clk 0:00:56.6]} 33. Bxb4 {[%clk 0:01:45]} 33... g6 {[%clk 0:00:15.3]} 34.
Bxe7 {[%clk 0:01:39.5]} 34... Bxe7 {[%clk 0:00:16.2]} 35. Ngxe6 {[%clk
0:01:30.6]} 35... Bxe6 {[%clk 0:00:15.7]} 36. Nxe6 {[%clk 0:01:30.4]} 36... Nxe6
{[%clk 0:00:09.4]} 37. Rxg6+ {[%clk 0:01:30.8]} 37... Kh8 {[%clk 0:00:03.8]} 38.
Rxe6 {[%clk 0:01:30.8]} 38... Bf8 {[%clk 0:00:01.7]} 39. Qxf5 {[%clk 0:01:30]}
39... Bxh6 {[%clk 0:00:01.7]} 40. Rxh6+ {[%clk 0:01:29.8]} 1-0

[Event "Late-Titled-Tuesday-Blitz-February-13-2024"]
[Site "Chess.com"]
[Date "2024.02.13"]
[Round "1"]
[White "Kirill_Klukin"]
[Black "KorolDimitriy75"]
[Result "1-0"]
[WhiteElo "2817"]
[BlackElo "2428"]
[TimeControl "180+1"]
[EndTime "14:06:21 PST"]
[Termination "Kirill_Klukin won on time"]

1. d4 {[%clk 0:02:59.4]} 1... Nf6 {[%clk 0:02:59.5]} 2. Nf3 {[%clk 0:02:59.3]}
2... g6 {[%clk 0:02:58.5]} 3. e3 {[%clk 0:02:59.3]} 3... c5 {[%clk 0:02:58.4]}
4. Be2 {[%clk 0:02:59.5]} 4... Qb6 {[%clk 0:02:57.5]} 5. O-O {[%clk 0:02:58.9]}
5... d5 {[%clk 0:02:57]} 6. dxc5 {[%clk 0:02:57.2]} 6... Qxc5 {[%clk 0:02:57.9]}
7. a3 {[%clk 0:02:57.6]} 7... Bg7 {[%clk 0:02:57.6]} 8. b4 {[%clk 0:02:57.8]}
8... Qc7 {[%clk 0:02:57.3]} 9. Bb2 {[%clk 0:02:58.4]} 9... O-O {[%clk
0:02:56.7]} 10. Nbd2 {[%clk 0:02:58.9]} 10... Rd8 {[%clk 0:02:55.1]} 11. Rc1
{[%clk 0:02:57.8]} 11... Nc6 {[%clk 0:02:54.3]} 12. c4 {[%clk 0:02:57.9]} 12...
dxc4 {[%clk 0:02:30.7]} 13. Bxc4 {[%clk 0:02:58.8]} 13... a6 {[%clk 0:02:16.5]}
14. Ne5 {[%clk 0:02:45.3]} 14... e6 {[%clk 0:02:03.9]} 15. Nxc6 {[%clk
0:02:41.6]} 15... Qxc6 {[%clk 0:01:49.2]} 16. Qe2 {[%clk 0:02:39.8]} 16... b5
{[%clk 0:01:28.8]} 17. Ba2 {[%clk 0:02:32.8]} 17... Qe8 {[%clk 0:01:12.3]} 18.
Nb3 {[%clk 0:02:27.6]} 18... Bb7 {[%clk 0:01:11.1]} 19. Nc5 {[%clk 0:02:27.2]}
19... Bd5 {[%clk 0:01:11.1]} 20. Bxd5 {[%clk 0:02:23.1]} 20... Nxd5 {[%clk
0:01:02]} 21. Bxg7 {[%clk 0:02:24]} 21... Kxg7 {[%clk 0:01:02.2]} 22. Qb2+
{[%clk 0:02:24.8]} 22... Kg8 {[%clk 0:00:51.1]} 23. Rfd1 {[%clk 0:02:24.6]}
23... Qe7 {[%clk 0:00:47.1]} 24. h3 {[%clk 0:02:20.7]} 24... a5 {[%clk
0:00:37.5]} 25. bxa5 {[%clk 0:02:15.6]} 25... Qa7 {[%clk 0:00:12.3]} 26. a6
{[%clk 0:02:01.5]} 26... Rdc8 {[%clk 0:00:11.6]} 27. Qxb5 {[%clk 0:01:54.5]}
27... Rab8 {[%clk 0:00:10.4]} 28. Qa5 {[%clk 0:01:54.3]} 28... Rc6 {[%clk
0:00:08.8]} 29. e4 {[%clk 0:01:36.3]} 29... Nf4 {[%clk 0:00:06.8]} 30. Qd2
{[%clk 0:01:36.7]} 30... Rxc5 {[%clk 0:00:05.7]} 31. Qxf4 {[%clk 0:01:35.7]}
31... Rbc8 {[%clk 0:00:04.6]} 32. Rxc5 {[%clk 0:01:33.3]} 32... Rxc5 {[%clk
0:00:05.5]} 33. Qf6 {[%clk 0:01:30.1]} 33... Rc8 {[%clk 0:00:04.4]} 34. Rd8+
{[%clk 0:01:30.1]} 34... Rxd8 {[%clk 0:00:04.7]} 35. Qxd8+ {[%clk 0:01:31]}
35... Kg7 {[%clk 0:00:05.4]} 36. Qa5 {[%clk 0:01:28.7]} 36... h5 {[%clk
0:00:02.8]} 37. Qc3+ {[%clk 0:01:25.3]} 37... Kg8 {[%clk 0:00:02.8]} 38. Qc8+
{[%clk 0:01:26]} 38... Kg7 {[%clk 0:00:02.8]} 39. Qb7 {[%clk 0:01:26.3]} 39...
Qd4 {[%clk 0:00:02.6]} 40. a7 {[%clk 0:01:26.2]} 40... Qd2 {[%clk 0:00:01.7]}
41. g3 {[%clk 0:01:23.7]} 1-0

[Event "Late-Titled-Tuesday-Blitz-February-13-2024"]
[Site "Chess.com"]
[Date "2024.02.13"]
[Round "1"]
[White "nihalsarin"]
[Black "ural58"]
[Result "1-0"]
[WhiteElo "3203"]
[BlackElo "2528"]
[TimeControl "180+1"]
[EndTime "14:06:22 PST"]
[Termination "nihalsarin won by resignation"]

1. e4 {[%clk 0:02:59.6]} 1... d5 {[%clk 0:02:54.4]} 2. exd5 {[%clk 0:02:59.3]}
2... Qxd5 {[%clk 0:02:54]} 3. Nc3 {[%clk 0:02:59.7]} 3... Qa5 {[%clk 0:02:53.5]}
4. Nf3 {[%clk 0:02:56.2]} 4... Nf6 {[%clk 0:02:49.2]} 5. d4 {[%clk 0:02:55.4]}
5... Nc6 {[%clk 0:02:48.9]} 6. d5 {[%clk 0:02:52.5]} 6... Nb4 {[%clk 0:02:47.9]}
7. Bb5+ {[%clk 0:02:53.1]} 7... Bd7 {[%clk 0:02:47.4]} 8. Bxd7+ {[%clk 0:02:53]}
8... Nxd7 {[%clk 0:02:47.3]} 9. a3 {[%clk 0:02:49.2]} 9... Nf6 {[%clk
0:02:46.8]} 10. axb4 {[%clk 0:02:39.7]} 10... Qxa1 {[%clk 0:02:46.6]} 11. O-O
{[%clk 0:02:40.4]} 11... Qa6 {[%clk 0:02:46.4]} 12. b5 {[%clk 0:02:37]} 12...
Qd6 {[%clk 0:02:43]} 13. Qd4 {[%clk 0:02:35.7]} 13... e5 {[%clk 0:02:16.8]} 14.
Nxe5 {[%clk 0:02:32.6]} 14... Be7 {[%clk 0:02:13.3]} 15. Nc4 {[%clk 0:02:21.5]}
15... Qc5 {[%clk 0:02:11.3]} 16. Qd3 {[%clk 0:02:21]} 16... O-O {[%clk
0:01:58.1]} 17. Be3 {[%clk 0:02:19.1]} 17... Qb4 {[%clk 0:01:57.9]} 18. Ra1
{[%clk 0:02:19.5]} 18... Bd8 {[%clk 0:01:56.7]} 19. d6 {[%clk 0:02:18]} 19... a6
{[%clk 0:01:34.8]} 20. b6 {[%clk 0:01:51.8]} 20... cxb6 {[%clk 0:01:12.4]} 21.
Ra4 {[%clk 0:01:48.1]} 21... Qxc3 {[%clk 0:00:56.4]} 22. bxc3 {[%clk 0:01:40.9]}
22... b5 {[%clk 0:00:57.3]} 23. Ra1 {[%clk 0:01:40.2]} 23... bxc4 {[%clk
0:00:57.2]} 24. Qxc4 {[%clk 0:01:41.1]} 24... Re8 {[%clk 0:00:45]} 25. Rb1
{[%clk 0:01:39.5]} 25... b5 {[%clk 0:00:44.1]} 26. Qc6 {[%clk 0:01:37.6]} 26...
Ba5 {[%clk 0:00:43.8]} 27. d7 {[%clk 0:01:21.7]} 27... Red8 {[%clk 0:00:42.4]}
28. Bg5 {[%clk 0:01:22.1]} 28... Ra7 {[%clk 0:00:33.5]} 29. Bxf6 {[%clk
0:01:21.8]} 29... gxf6 {[%clk 0:00:32.9]} 30. Rd1 {[%clk 0:01:22.2]} 30... Rc7
{[%clk 0:00:29.3]} 31. Qxa6 {[%clk 0:01:15.6]} 31... Bxc3 {[%clk 0:00:28.6]} 32.
Qxb5 {[%clk 0:01:14.9]} 32... Be5 {[%clk 0:00:22.8]} 33. c4 {[%clk 0:01:09.6]}
33... Kf8 {[%clk 0:00:21.1]} 34. c5 {[%clk 0:01:06.7]} 34... Ke7 {[%clk
0:00:20.9]} 35. c6 {[%clk 0:01:06.9]} 1-0

[Event "Late-Titled-Tuesday-Blitz-February-13-2024"]
[Site "Chess.com"]
[Date "2024.02.13"]
[Round "1"]
[White "VinzentSpitzl"]
[Black "h4parah5"]
[Result "0-1"]
[WhiteElo "2501"]
[BlackElo "2961"]
[TimeControl "180+1"]
[EndTime "14:06:23 PST"]
[Termination "h4parah5 won on time"]

1. e4 {[%clk 0:02:59.8]} 1... c5 {[%clk 0:02:58.9]} 2. Nf3 {[%clk 0:03:00.1]}
2... Nc6 {[%clk 0:02:59.3]} 3. d4 {[%clk 0:03:00.6]} 3... cxd4 {[%clk
0:03:00.2]} 4. Nxd4 {[%clk 0:03:01.5]} 4... Nf6 {[%clk 0:03:00.8]} 5. Nc3 {[%clk
0:03:01.5]} 5... h5 {[%clk 0:03:01.3]} 6. Be2 {[%clk 0:02:34.7]} 6... g6 {[%clk
0:03:00.1]} 7. O-O {[%clk 0:02:22.4]} 7... Bg7 {[%clk 0:02:59.7]} 8. Be3 {[%clk
0:02:20.1]} 8... Ng4 {[%clk 0:02:59.6]} 9. Bxg4 {[%clk 0:02:16.3]} 9... hxg4
{[%clk 0:02:59.1]} 10. Nxc6 {[%clk 0:02:15.6]} 10... bxc6 {[%clk 0:02:44.1]} 11.
Qxg4 {[%clk 0:01:08.3]} 11... d5 {[%clk 0:02:42.5]} 12. Qg5 {[%clk 0:00:49]}
12... d4 {[%clk 0:02:37.5]} 13. Rfd1 {[%clk 0:00:48.5]} 13... Qb6 {[%clk
0:02:32.7]} 14. Na4 {[%clk 0:00:25.7]} 14... Qb4 {[%clk 0:02:01.1]} 15. Rxd4
{[%clk 0:00:21.6]} 15... Bxd4 {[%clk 0:01:52.2]} 16. c3 {[%clk 0:00:21.6]} 16...
Qxa4 {[%clk 0:01:50.3]} 17. Bxd4 {[%clk 0:00:21.8]} 17... Rh5 {[%clk 0:01:47.9]}
18. Qg3 {[%clk 0:00:19.6]} 18... Qa5 {[%clk 0:01:42]} 19. Rd1 {[%clk 0:00:18.1]}
19... Bd7 {[%clk 0:01:35.3]} 20. b4 {[%clk 0:00:16.3]} 20... Qg5 {[%clk
0:01:16.7]} 21. Qd3 {[%clk 0:00:14.8]} 21... Bh3 {[%clk 0:01:04.4]} 22. g3
{[%clk 0:00:12.8]} 22... Rd8 {[%clk 0:01:02.5]} 23. Qa6 {[%clk 0:00:10.4]} 23...
Qb5 {[%clk 0:00:55.6]} 24. Qxa7 {[%clk 0:00:06]} 24... Qe2 {[%clk 0:00:52.3]}
0-1

[Event "Late-Titled-Tuesday-Blitz-February-13-2024"]
[Site "Chess.com"]
[Date "2024.02.13"]
[Round "1"]
[White "Misticpikachu"]
[Black "Alex_Sahakyan2006"]
[Result "0-1"]
[WhiteElo "2478"]
[BlackElo "2874"]
[TimeControl "180+1"]
[EndTime "14:06:24 PST"]
[Termination "Alex_Sahakyan2006 won by resignation"]

1. c4 {[%clk 0:03:00.9]} 1... Nf6 {[%clk 0:02:59.8]} 2. Nc3 {[%clk 0:02:58.8]}
2... c5 {[%clk 0:03:00.3]} 3. Nf3 {[%clk 0:02:58.2]} 3... Nc6 {[%clk 0:03:00.7]}
4. g3 {[%clk 0:02:47.5]} 4... g6 {[%clk 0:03:00.7]} 5. Bg2 {[%clk 0:02:47]} 5...
Bg7 {[%clk 0:03:01.2]} 6. O-O {[%clk 0:02:47.8]} 6... O-O {[%clk 0:03:01.7]} 7.
d4 {[%clk 0:02:48.7]} 7... cxd4 {[%clk 0:03:02]} 8. Nxd4 {[%clk 0:02:49.6]} 8...
d6 {[%clk 0:03:02.9]} 9. b3 {[%clk 0:02:49.9]} 9... Nxd4 {[%clk 0:02:57.7]} 10.
Qxd4 {[%clk 0:02:48.1]} 10... Bf5 {[%clk 0:02:47.3]} 11. Bb2 {[%clk 0:02:46.8]}
11... Ne4 {[%clk 0:02:46.8]} 12. Qe3 {[%clk 0:02:46.4]} 12... Qb6 {[%clk
0:02:35.9]} 13. Qc1 {[%clk 0:01:29.3]} 13... Nxc3 {[%clk 0:01:59.7]} 14. Bxc3
{[%clk 0:01:28.1]} 14... Bxc3 {[%clk 0:02:00.6]} 15. Qxc3 {[%clk 0:01:28.6]}
15... Rac8 {[%clk 0:02:01.5]} 16. Rfd1 {[%clk 0:01:27.2]} 16... Qc7 {[%clk
0:02:00.5]} 17. Qe3 {[%clk 0:01:25.4]} 17... a6 {[%clk 0:02:00.4]} 18. Rac1
{[%clk 0:01:24.6]} 18... Rfe8 {[%clk 0:01:55.2]} 19. Rd4 {[%clk 0:01:24.6]}
19... b5 {[%clk 0:01:48.9]} 20. Rh4 {[%clk 0:01:05.1]} 20... h5 {[%clk
0:01:48.6]} 21. Qg5 {[%clk 0:00:54.8]} 21... bxc4 {[%clk 0:01:28.5]} 22. Rxh5
{[%clk 0:00:37.4]} 22... f6 {[%clk 0:01:26.8]} 23. Qf4 {[%clk 0:00:25.5]} 23...
e6 {[%clk 0:01:01.9]} 24. Rxc4 {[%clk 0:00:20.5]} 24... Qa5 {[%clk 0:01:02]} 25.
Rh4 {[%clk 0:00:14.2]} 25... g5 {[%clk 0:01:00.4]} 26. Qf3 {[%clk 0:00:02.4]}
26... Qe1+ {[%clk 0:00:57.8]} 27. Bf1 {[%clk 0:00:02.6]} 27... gxh4 {[%clk
0:00:58.4]} 28. gxh4 {[%clk 0:00:01.4]} 28... Rxc4 {[%clk 0:00:58.3]} 29. bxc4
{[%clk 0:00:01.8]} 29... Re7 {[%clk 0:00:55.9]} 30. Qh1 {[%clk 0:00:01.4]} 30...
Rg7+ {[%clk 0:00:55.6]} 0-1

[Event "Late-Titled-Tuesday-Blitz-February-13-2024"]
[Site "Chess.com"]
[Date "2024.02.13"]
[Round "1"]
[White "RantomOpening"]
[Black "Chopper1905"]
[Result "0-1"]
[WhiteElo "2505"]
[BlackElo "2973"]
[TimeControl "180+1"]
[EndTime "14:06:29 PST"]
[Termination "Chopper1905 won by resignation"]

1. c4 {[%clk 0:03:00.7]} 1... Nf6 {[%clk 0:02:59.3]} 2. Nf3 {[%clk 0:02:55.8]}
2... g6 {[%clk 0:02:57.3]} 3. Nc3 {[%clk 0:02:55.9]} 3... Bg7 {[%clk 0:02:57.5]}
4. e4 {[%clk 0:02:55.9]} 4... d6 {[%clk 0:02:58]} 5. d4 {[%clk 0:02:56.2]} 5...
O-O {[%clk 0:02:58.6]} 6. Be2 {[%clk 0:02:56.5]} 6... Na6 {[%clk 0:02:59.2]} 7.
Be3 {[%clk 0:02:56.7]} 7... c6 {[%clk 0:02:56.8]} 8. O-O {[%clk 0:02:56.8]} 8...
e5 {[%clk 0:02:54.7]} 9. dxe5 {[%clk 0:02:54.3]} 9... dxe5 {[%clk 0:02:52.8]}
10. h3 {[%clk 0:02:52.9]} 10... Qe7 {[%clk 0:02:50]} 11. Qc2 {[%clk 0:02:50.1]}
11... Nd7 {[%clk 0:02:44.2]} 12. a3 {[%clk 0:02:47.7]} 12... Nac5 {[%clk
0:02:40.5]} 13. b4 {[%clk 0:02:29.5]} 13... Ne6 {[%clk 0:02:40.2]} 14. c5 {[%clk
0:02:28]} 14... Nd4 {[%clk 0:02:37.7]} 15. Qb2 {[%clk 0:02:13.4]} 15... Rd8
{[%clk 0:02:33.4]} 16. Rad1 {[%clk 0:02:12]} 16... Nf8 {[%clk 0:02:33.3]} 17.
Nb1 {[%clk 0:01:52.9]} 17... Nfe6 {[%clk 0:02:27.4]} 18. Bxd4 {[%clk 0:01:44.5]}
18... exd4 {[%clk 0:02:20.7]} 19. Bc4 {[%clk 0:01:43.2]} 19... Nf4 {[%clk
0:02:12.2]} 20. Nbd2 {[%clk 0:01:40.6]} 20... a5 {[%clk 0:02:03.4]} 21. Rfe1
{[%clk 0:01:33.2]} 21... d3 {[%clk 0:01:45.8]} 22. Qb3 {[%clk 0:01:21.7]} 22...
Ne2+ {[%clk 0:01:39.4]} 23. Kh1 {[%clk 0:01:17.4]} 23... a4 {[%clk 0:01:16.2]}
24. Qb1 {[%clk 0:01:17.4]} 24... Nc3 {[%clk 0:01:16.3]} 25. Qc1 {[%clk
0:01:18.3]} 25... Be6 {[%clk 0:01:08.3]} 26. Bxe6 {[%clk 0:01:12.1]} 26... Qxe6
{[%clk 0:01:07.8]} 27. Nb1 {[%clk 0:01:08.1]} 27... Nxd1 {[%clk 0:01:03.9]} 28.
Qxd1 {[%clk 0:01:08.9]} 28... Qb3 {[%clk 0:01:00]} 29. Qxb3 {[%clk 0:01:06]}
29... axb3 {[%clk 0:00:59.9]} 30. Nfd2 {[%clk 0:01:06.4]} 30... b2 {[%clk
0:00:59.2]} 31. Rd1 {[%clk 0:01:03.7]} 31... Bh6 {[%clk 0:00:56.8]} 32. Nc4
{[%clk 0:01:03.4]} 32... Bc1 {[%clk 0:00:55.6]} 33. Kg1 {[%clk 0:01:01.8]} 33...
Rd4 {[%clk 0:00:52.5]} 34. Nd6 {[%clk 0:01:01.1]} 34... b6 {[%clk 0:00:49.6]}
35. Kf1 {[%clk 0:00:59.5]} 35... bxc5 {[%clk 0:00:49.7]} 36. bxc5 {[%clk
0:00:59.8]} 36... Ra5 {[%clk 0:00:47.1]} 37. f3 {[%clk 0:00:44.7]} 37... Rxc5
{[%clk 0:00:46.6]} 38. Nc8 {[%clk 0:00:42.2]} 38... Rc2 {[%clk 0:00:44.3]} 39.
Ne7+ {[%clk 0:00:40.9]} 39... Kf8 {[%clk 0:00:43.8]} 40. Nc8 {[%clk 0:00:41.2]}
40... Be3 {[%clk 0:00:43.4]} 41. Na7 {[%clk 0:00:39.7]} 41... Rf2+ {[%clk
0:00:43.3]} 0-1

[Event "Late-Titled-Tuesday-Blitz-February-13-2024"]
[Site "Chess.com"]
[Date "2024.02.13"]
[Round "1"]
[White "aqibjbutt"]
[Black "ahmedkandiliii"]
[Result "0-1"]
[WhiteElo "2057"]
[BlackElo "2542"]
[TimeControl "180+1"]
[EndTime "14:06:30 PST"]
[Termination "ahmedkandiliii won by resignation"]

1. d4 {[%clk 0:02:39.6]} 1... Nf6 {[%clk 0:02:59.5]} 2. Nf3 {[%clk 0:02:39.4]}
2... g6 {[%clk 0:02:58.8]} 3. g3 {[%clk 0:02:39.9]} 3... Bg7 {[%clk 0:02:59.3]}
4. Bg2 {[%clk 0:02:40.8]} 4... O-O {[%clk 0:02:59.7]} 5. O-O {[%clk 0:02:41.6]}
5... d5 {[%clk 0:03:00.4]} 6. c3 {[%clk 0:02:39.9]} 6... c6 {[%clk 0:03:00.3]}
7. Bf4 {[%clk 0:02:40.3]} 7... Bf5 {[%clk 0:02:58.7]} 8. Nbd2 {[%clk 0:02:39.4]}
8... Nbd7 {[%clk 0:02:59.4]} 9. Re1 {[%clk 0:02:37.8]} 9... Qb6 {[%clk
0:02:59.1]} 10. Qb3 {[%clk 0:02:36.8]} 10... Ne4 {[%clk 0:02:52.4]} 11. Rad1
{[%clk 0:02:32.3]} 11... Qxb3 {[%clk 0:02:39.6]} 12. axb3 {[%clk 0:02:30.2]}
12... f6 {[%clk 0:02:39.1]} 13. Nxe4 {[%clk 0:02:23.3]} 13... Bxe4 {[%clk
0:02:38.4]} 14. Nd2 {[%clk 0:02:17.3]} 14... Bxg2 {[%clk 0:02:37.4]} 15. Kxg2
{[%clk 0:02:17.8]} 15... e5 {[%clk 0:02:38.1]} 16. Be3 {[%clk 0:02:07.9]} 16...
a5 {[%clk 0:02:36.3]} 17. f3 {[%clk 0:02:04.9]} 17... a4 {[%clk 0:02:32.6]} 18.
bxa4 {[%clk 0:01:58.4]} 18... Rxa4 {[%clk 0:02:33.5]} 19. Ra1 {[%clk 0:01:59]}
19... Rfa8 {[%clk 0:02:31.7]} 20. Nb3 {[%clk 0:01:58.5]} 20... Nb6 {[%clk
0:02:22.1]} 21. dxe5 {[%clk 0:01:42.9]} 21... Nc4 {[%clk 0:02:21.8]} 22. Rxa4
{[%clk 0:01:27.9]} 22... Rxa4 {[%clk 0:02:16.1]} 23. Kf2 {[%clk 0:00:51.1]}
23... fxe5 {[%clk 0:02:11.8]} 24. Nc5 {[%clk 0:00:45.9]} 24... Ra2 {[%clk
0:02:06.7]} 25. b3 {[%clk 0:00:40.9]} 25... Nxe3 {[%clk 0:02:03.1]} 26. Kxe3
{[%clk 0:00:41.6]} 26... b6 {[%clk 0:02:03.6]} 27. Na4 {[%clk 0:00:35.9]} 27...
Bf8 {[%clk 0:01:54.1]} 28. Kd3 {[%clk 0:00:31]} 28... b5 {[%clk 0:01:53.4]} 29.
Nb6 {[%clk 0:00:29.3]} 29... Ra7 {[%clk 0:01:49.8]} 30. c4 {[%clk 0:00:18.7]}
30... Bc5 {[%clk 0:01:48.7]} 31. cxd5 {[%clk 0:00:09.2]} 31... Bxb6 {[%clk
0:01:48.2]} 32. dxc6 {[%clk 0:00:09.9]} 32... Kf7 {[%clk 0:01:44.7]} 33. Ke4
{[%clk 0:00:08.2]} 33... Ke6 {[%clk 0:01:45.1]} 34. Rd1 {[%clk 0:00:07.9]} 34...
Rc7 {[%clk 0:01:42.6]} 35. Rc1 {[%clk 0:00:07.3]} 35... Bd4 {[%clk 0:01:34]} 36.
e3 {[%clk 0:00:06.6]} 36... Bb6 {[%clk 0:01:33.8]} 37. f4 {[%clk 0:00:06.6]}
37... exf4 {[%clk 0:01:33.2]} 38. gxf4 {[%clk 0:00:06.9]} 38... Kd6 {[%clk
0:01:33.5]} 39. Rd1+ {[%clk 0:00:04.2]} 39... Kxc6 {[%clk 0:01:33.7]} 40. Rc1+
{[%clk 0:00:05.1]} 40... Kb7 {[%clk 0:01:33.8]} 41. Rxc7+ {[%clk 0:00:06]} 41...
Kxc7 {[%clk 0:01:34.7]} 42. f5 {[%clk 0:00:04.8]} 42... gxf5+ {[%clk 0:01:32.6]}
43. Kxf5 {[%clk 0:00:05.7]} 0-1

[Event "Late-Titled-Tuesday-Blitz-February-13-2024"]
[Site "Chess.com"]
[Date "2024.02.13"]
[Round "1"]
[White "bazar-wokzal"]
[Black "JCVanDamme10"]
[Result "1-0"]
[WhiteElo "2652"]
[BlackElo "2307"]
[TimeControl "180+1"]
[EndTime "14:06:32 PST"]
[Termination "bazar-wokzal won on time"]

1. e4 {[%clk 0:03:00.9]} 1... c5 {[%clk 0:02:59.5]} 2. c3 {[%clk 0:02:59.2]}
2... d5 {[%clk 0:02:58.9]} 3. exd5 {[%clk 0:02:56.1]} 3... Qxd5 {[%clk
0:02:59.8]} 4. d4 {[%clk 0:02:55.7]} 4... Nf6 {[%clk 0:03:00.4]} 5. Nf3 {[%clk
0:02:55.5]} 5... Nc6 {[%clk 0:03:00.1]} 6. Be3 {[%clk 0:02:53.1]} 6... cxd4
{[%clk 0:02:59.8]} 7. cxd4 {[%clk 0:02:54]} 7... e6 {[%clk 0:02:52]} 8. a3
{[%clk 0:02:54.2]} 8... Be7 {[%clk 0:02:45.7]} 9. Nc3 {[%clk 0:02:54.8]} 9...
Qd8 {[%clk 0:02:45.6]} 10. Qc2 {[%clk 0:02:55.4]} 10... O-O {[%clk 0:02:44.7]}
11. Bd3 {[%clk 0:02:56]} 11... Bd7 {[%clk 0:02:38.4]} 12. O-O {[%clk 0:02:55.6]}
12... Rc8 {[%clk 0:02:39]} 13. Rad1 {[%clk 0:02:54.9]} 13... h6 {[%clk
0:02:34.4]} 14. Qd2 {[%clk 0:02:54.3]} 14... Ng4 {[%clk 0:02:30.4]} 15. Bb1
{[%clk 0:02:50.9]} 15... Nxe3 {[%clk 0:02:28.6]} 16. fxe3 {[%clk 0:02:51.2]}
16... f5 {[%clk 0:02:22.4]} 17. Ba2 {[%clk 0:02:47.2]} 17... Kh7 {[%clk
0:02:19.8]} 18. d5 {[%clk 0:02:28.9]} 18... exd5 {[%clk 0:02:20]} 19. Qxd5
{[%clk 0:02:27.9]} 19... Be8 {[%clk 0:02:16.3]} 20. Qe6 {[%clk 0:02:19.7]} 20...
Bf7 {[%clk 0:00:54.3]} 21. Rxd8 {[%clk 0:02:16.3]} 21... Bxe6 {[%clk 0:00:47]}
22. Rxf8 {[%clk 0:02:15.8]} 22... Rxf8 {[%clk 0:00:40]} 23. Bxe6 {[%clk
0:02:15]} 23... f4 {[%clk 0:00:39.5]} 24. e4 {[%clk 0:02:00.9]} 24... g5 {[%clk
0:00:37.1]} 25. b4 {[%clk 0:01:55.1]} 25... Kg7 {[%clk 0:00:37.3]} 26. Nd5
{[%clk 0:01:54.8]} 26... Bd8 {[%clk 0:00:35.4]} 27. b5 {[%clk 0:01:53.9]} 27...
Na5 {[%clk 0:00:33.9]} 28. Nd4 {[%clk 0:01:52.6]} 28... Re8 {[%clk 0:00:26.3]}
29. Bf5 {[%clk 0:01:47.9]} 29... Nc4 {[%clk 0:00:23.1]} 30. Ne6+ {[%clk
0:01:46.2]} 30... Kg8 {[%clk 0:00:22.4]} 31. Rc1 {[%clk 0:01:44.7]} 31... Ne3
{[%clk 0:00:15.1]} 32. Nxd8 {[%clk 0:01:38.8]} 32... Rxd8 {[%clk 0:00:13.8]} 33.
Rc7 {[%clk 0:01:32.5]} 33... Nxd5 {[%clk 0:00:12.1]} 34. exd5 {[%clk 0:01:32]}
34... Kf8 {[%clk 0:00:11]} 35. Be6 {[%clk 0:01:30.3]} 35... b6 {[%clk 0:00:10]}
36. Rxa7 {[%clk 0:01:29.2]} 36... Rd6 {[%clk 0:00:10.1]} 37. a4 {[%clk
0:01:28.2]} 37... Rd8 {[%clk 0:00:05.9]} 38. Kf2 {[%clk 0:01:28]} 38... Rd6
{[%clk 0:00:03.6]} 39. Kf3 {[%clk 0:01:28]} 39... Rd8 {[%clk 0:00:02.7]} 40. Ke4
{[%clk 0:01:28.2]} 40... Rd6 {[%clk 0:00:02.5]} 41. Ke5 {[%clk 0:01:28.3]} 41...
Rd8 {[%clk 0:00:02.6]} 42. d6 {[%clk 0:01:28.5]} 1-0